fUST/lending_fUST_20260614
["ID","MTS","AMOUNT","RATE_DAILY","PERIOD"]
[424996302,1781392241000,-309.76,0.00025542,2]
[424996301,1781392241000,-259.01886349,0.00025531,2]
[424996300,1781392241000,-471.86934696,0.00025531,2]
[424996312,1781392241000,-233.17487465,0.0002555,2]
[424996307,1781392241000,-159.95073808,0.00025546,2]
[424996311,1781392241000,-326.5316412,0.0002555,2]
[424996319,1781392241000,-230.12,0.00025753,2]
[424996313,1781392241000,-222.43469379,0.0002555,2]
[424996314,1781392241000,-150.87,0.00025649,7]
[424996315,1781392241000,-267.48979707,0.0002565,4]
[424996316,1781392241000,-213.66,0.00025665,7]
[424996317,1781392241000,-150.87,0.00025699,7]
[424996320,1781392241000,-200.0,0.00025904,2]
[424996318,1781392241000,-150.88,0.00025749,7]
[424996322,1781392241000,-45329.58724251,0.00025905,7]
[424996321,1781392241000,-200.0,0.00025904,2]
[424996323,1781392241000,-673.94304487,0.00025905,7]
[424996324,1781392241000,-303.30071407,0.00025905,7]
[424996310,1781392241000,-305.3493126,0.0002555,2]
[424996382,1781392248000,-981.06990157,0.00025496,2]
[424996383,1781392248000,-8304.92928315,0.00025905,7]
[424996417,1781393432000,-487.3536156,0.00024172,2]
[424996418,1781393432000,-87.34013292,0.00024283,2]
[424996442,1781393438000,-266.23321062,0.00024651,2]
[424996440,1781393438000,-89.76678938,0.00024283,2]
[424996663,1781393587000,-1742.38014519,0.00023972,2]
[424996664,1781393604000,-865.54002131,0.00024362,2]
[424996665,1781393621000,-43.01678938,0.00024651,2]
[424996666,1781393638000,-166.66666667,0.00024921,2]
[424996727,1781394632000,-166.66666667,0.00024921,2]
[424996729,1781394632000,-260.89154894,0.00024943,2]
[424996719,1781394632000,-352.96485818,0.00024172,2]
[424996731,1781394632000,-307.46263632,0.00024943,2]
[424996723,1781394632000,-590.6903273,0.00024172,2]
[424996725,1781394632000,-1063.24258915,0.00024172,2]
[424996721,1781394632000,-635.33674473,0.00024172,2]
[424996810,1781395802000,2327.857,0.0002411,30]
[424996818,1781395832000,-269.82755085,0.00021234,2]
[424996817,1781395832000,-904.38624128,0.00020819,2]
[424996816,1781395832000,-983.93259704,0.00020819,2]
[424996814,1781395832000,-674.83,0.00018,2]
[424996815,1781395832000,-300.0,0.00018538,2]
[424996944,1781395838000,-159.45490528,0.00024172,2]
[424996942,1781395838000,-419.05805033,0.00024172,2]
[424996952,1781395838000,-209.71611797,0.00024669,8]
[424996939,1781395838000,-482.21612825,0.00022963,2]
[424996941,1781395838000,-482.5321779,0.00023722,2]
[424996940,1781395838000,-382.67539913,0.00022963,2]
[424996947,1781395838000,-500.0,0.00024669,8]
[424996938,1781395838000,-858.53050779,0.00021234,2]
[424996951,1781395838000,-500.0,0.00024669,8]
[424996945,1781395838000,-653.0,0.00024338,2]
[424996943,1781395838000,-332.55463116,0.00024172,2]
[424996948,1781395838000,-500.0,0.00024669,8]
[424996949,1781395838000,-500.0,0.00024669,8]
[424996950,1781395838000,-151.5,0.00024669,8]
[424996953,1781395838000,-251.39099117,0.00024669,8]
[424996954,1781395838000,-500.0,0.00024669,8]
[424996955,1781395838000,-151.5,0.00024669,8]
[424996957,1781395838000,-175.4911037,0.00024669,8]
[424996956,1781395838000,-500.0,0.00024669,8]
[424996959,1781395838000,-162.28068436,0.00024669,8]
[424996958,1781395838000,-500.0,0.00024669,8]
[424996946,1781395838000,-193.86757875,0.00024644,2]
[424997004,1781395839000,-671.37657372,0.00024743,2]
[424997002,1781395839000,-182.62408426,0.00024743,2]
[424997003,1781395839000,-671.37657372,0.00024743,2]
[424997000,1781395839000,-671.37657372,0.00024743,2]
[424996999,1781395839000,-671.37657372,0.00024743,2]
[424996995,1781395839000,-500.0,0.00024742,2]
[424996994,1781395839000,-500.0,0.00024742,2]
[424996992,1781395839000,-500.0,0.00024742,2]
[424996993,1781395839000,-500.0,0.00024742,2]
[424996998,1781395839000,-202.36724387,0.00024743,2]
[424996997,1781395839000,-298.04650599,0.00024742,2]
[424996996,1781395839000,-372.3503575,0.00024742,2]
[424997005,1781395839000,-671.37657372,0.00024743,2]
[424997019,1781395839000,-671.37657372,0.00024743,2]
[424997008,1781395839000,-671.37657372,0.00024743,2]
[424997010,1781395839000,-671.37657372,0.00024743,2]
[424997009,1781395839000,-671.37657372,0.00024743,2]
[424997007,1781395839000,-671.37657372,0.00024743,2]
[424997011,1781395839000,-671.37657372,0.00024743,2]
[424997013,1781395839000,-671.37657372,0.00024743,2]
[424997012,1781395839000,-671.37657372,0.00024743,2]
[424997014,1781395839000,-671.37657372,0.00024743,2]
[424997015,1781395839000,-671.37657372,0.00024743,2]
[424997016,1781395839000,-671.37657372,0.00024743,2]
[424997018,1781395839000,-671.37657372,0.00024743,2]
[424997017,1781395839000,-671.37657372,0.00024743,2]
[424997020,1781395839000,-973.3901876,0.00024743,2]
[424996991,1781395839000,-500.0,0.00024742,2]
[424997006,1781395839000,-671.37657372,0.00024743,2]
[424996990,1781395839000,-500.0,0.00024742,2]
[424996975,1781395839000,-500.0,0.00024742,2]
[424996989,1781395839000,-500.0,0.00024742,2]
[424997024,1781395839000,-973.3901876,0.00024743,2]
[424996961,1781395839000,-500.0,0.00024669,8]
[424996962,1781395839000,-500.0,0.00024669,8]
[424996960,1781395839000,-500.0,0.00024669,8]
[424996963,1781395839000,-500.0,0.00024669,8]
[424996964,1781395839000,-500.0,0.00024669,8]
[424996965,1781395839000,-500.0,0.00024669,8]
[424996966,1781395839000,-574.25981194,0.00024669,8]
[424996967,1781395839000,-500.0,0.00024742,2]
[424996968,1781395839000,-500.0,0.00024742,2]
[424996969,1781395839000,-500.0,0.00024742,2]
[424996970,1781395839000,-500.0,0.00024742,2]
[424996971,1781395839000,-500.0,0.00024742,2]
[424996988,1781395839000,-500.0,0.00024742,2]
[424996974,1781395839000,-500.0,0.00024742,2]
[424996972,1781395839000,-500.0,0.00024742,2]
[424996977,1781395839000,-500.0,0.00024742,2]
[424996976,1781395839000,-500.0,0.00024742,2]
[424996978,1781395839000,-500.0,0.00024742,2]
[424996979,1781395839000,-500.0,0.00024742,2]
[424996980,1781395839000,-317.58144608,0.00024742,2]
[424996983,1781395839000,-500.0,0.00024742,2]
[424996981,1781395839000,-500.0,0.00024742,2]
[424996982,1781395839000,-500.0,0.00024742,2]
[424996984,1781395839000,-500.0,0.00024742,2]
[424996985,1781395839000,-500.0,0.00024742,2]
[424996987,1781395839000,-500.0,0.00024742,2]
[424996986,1781395839000,-500.0,0.00024742,2]
[424996973,1781395839000,-610.87355221,0.00024742,2]
[424997025,1781395839000,-973.3901876,0.00024743,2]
[424997001,1781395839000,-671.37657372,0.00024743,2]
[424997021,1781395839000,-973.3901876,0.00024743,2]
[424997058,1781395839000,-305.886733,0.00024744,2]
[424997059,1781395839000,-305.886733,0.00024744,2]
[424997060,1781395839000,-305.886733,0.00024744,2]
[424997057,1781395839000,-7106.523258,0.00024744,2]
[424997065,1781395839000,-316.361938,0.00024744,2]
[424997066,1781395839000,-169.573103,0.00024744,2]
[424997061,1781395839000,-169.573103,0.00024744,2]
[424997064,1781395839000,-169.573103,0.00024744,2]
[424997062,1781395839000,-305.886733,0.00024744,2]
[424997063,1781395839000,-169.573103,0.00024744,2]
[424997068,1781395839000,-316.361938,0.00024744,2]
[424997067,1781395839000,-316.361938,0.00024744,2]
[424997076,1781395839000,-345.656101,0.00024744,2]
[424997056,1781395839000,-7106.523258,0.00024744,2]
[424997069,1781395839000,-316.361938,0.00024744,2]
[424997078,1781395839000,-423.680215,0.00024744,2]
[424997077,1781395839000,-175.968618,0.00024744,2]
[424997070,1781395839000,-423.680215,0.00024744,2]
[424997074,1781395839000,-175.968618,0.00024744,2]
[424997072,1781395839000,-175.968618,0.00024744,2]
[424997071,1781395839000,-423.680215,0.00024744,2]
[424997075,1781395839000,-423.680215,0.00024744,2]
[424997073,1781395839000,-345.656101,0.00024744,2]
[424997080,1781395839000,-175.968618,0.00024744,2]
[424997081,1781395839000,-345.656101,0.00024744,2]
[424997082,1781395839000,-151.0,0.00024744,2]
[424997084,1781395839000,-151.0,0.00024744,2]
[424997022,1781395839000,-973.3901876,0.00024743,2]
[424997079,1781395839000,-345.656101,0.00024744,2]
[424997054,1781395839000,-151.0,0.00024744,2]
[424997086,1781395839000,-151.0,0.00024744,2]
[424997053,1781395839000,-7106.523258,0.00024744,2]
[424997027,1781395839000,-973.3901876,0.00024743,2]
[424997026,1781395839000,-973.3901876,0.00024743,2]
[424997023,1781395839000,-973.3901876,0.00024743,2]
[424997029,1781395839000,-1229.29760788,0.00024743,2]
[424997028,1781395839000,-973.3901876,0.00024743,2]
[424997031,1781395839000,-262.238637,0.00024744,2]
[424997030,1781395839000,-1229.29760788,0.00024743,2]
[424997034,1781395839000,-168.171378,0.00024744,2]
[424997055,1781395839000,-233.29536,0.00024744,2]
[424997033,1781395839000,-320.0,0.00024744,2]
[424997038,1781395839000,-320.0,0.00024744,2]
[424997036,1781395839000,-320.0,0.00024744,2]
[424997039,1781395839000,-512.471914,0.00024744,2]
[424997040,1781395839000,-512.471914,0.00024744,2]
[424997032,1781395839000,-300.0,0.00024744,2]
[424997037,1781395839000,-320.0,0.00024744,2]
[424997045,1781395839000,-6087.361427,0.00024744,2]
[424997035,1781395839000,-512.471914,0.00024744,2]
[424997051,1781395839000,-151.0,0.00024744,2]
[424997049,1781395839000,-151.0,0.00024744,2]
[424997052,1781395839000,-7106.523258,0.00024744,2]
[424997047,1781395839000,-236.503555,0.00024744,2]
[424997050,1781395839000,-236.503555,0.00024744,2]
[424997048,1781395839000,-236.503555,0.00024744,2]
[424997044,1781395839000,-6087.361427,0.00024744,2]
[424997083,1781395839000,-151.0,0.00024744,2]
[424997043,1781395839000,-6087.361427,0.00024744,2]
[424997042,1781395839000,-6087.361427,0.00024744,2]
[424997041,1781395839000,-512.471914,0.00024744,2]
[424997046,1781395839000,-236.503555,0.00024744,2]
[424997127,1781395840000,-157.381864,0.00024744,2]
[424997131,1781395840000,-654.234633,0.00024744,2]
[424997128,1781395840000,-654.234633,0.00024744,2]
[424997129,1781395840000,-654.234633,0.00024744,2]
[424997126,1781395840000,-157.381864,0.00024744,2]
[424997122,1781395840000,-151.0,0.00024744,2]
[424997125,1781395840000,-151.0,0.00024744,2]
[424997123,1781395840000,-2309.932865,0.00024744,2]
[424997120,1781395840000,-151.0,0.00024744,2]
[424997118,1781395840000,-151.0,0.00024744,2]
[424997121,1781395840000,-2309.932865,0.00024744,2]
[424997124,1781395840000,-151.0,0.00024744,2]
[424997133,1781395840000,-157.381864,0.00024744,2]
[424997145,1781395840000,-151.0,0.00024744,2]
[424997134,1781395840000,-654.234633,0.00024744,2]
[424997132,1781395840000,-157.381864,0.00024744,2]
[424997135,1781395840000,-654.234633,0.00024744,2]
[424997137,1781395840000,-157.381864,0.00024744,2]
[424997136,1781395840000,-157.381864,0.00024744,2]
[424997139,1781395840000,-157.381864,0.00024744,2]
[424997138,1781395840000,-654.234633,0.00024744,2]
[424997141,1781395840000,-157.381864,0.00024744,2]
[424997140,1781395840000,-654.234633,0.00024744,2]
[424997142,1781395840000,-151.0,0.00024744,2]
[424997144,1781395840000,-151.0,0.00024744,2]
[424997147,1781395840000,-151.0,0.00024744,2]
[424997119,1781395840000,-2309.932865,0.00024744,2]
[424997130,1781395840000,-654.234633,0.00024744,2]
[424997116,1781395840000,-151.0,0.00024744,2]
[424997100,1781395840000,-470.22192,0.00024744,2]
[424997114,1781395840000,-151.0,0.00024744,2]
[424997146,1781395840000,-151.0,0.00024744,2]
[424997093,1781395840000,-151.0,0.00024744,2]
[424997092,1781395840000,-151.0,0.00024744,2]
[424997091,1781395840000,-151.0,0.00024744,2]
[424997094,1781395840000,-151.0,0.00024744,2]
[424997089,1781395840000,-151.0,0.00024744,2]
[424997088,1781395840000,-151.0,0.00024744,2]
[424997090,1781395840000,-151.0,0.00024744,2]
[424997096,1781395840000,-151.0,0.00024744,2]
[424997097,1781395840000,-151.0,0.00024744,2]
[424997095,1781395840000,-151.0,0.00024744,2]
[424997099,1781395840000,-151.0,0.00024744,2]
[424997098,1781395840000,-151.0,0.00024744,2]
[424997101,1781395840000,-470.22192,0.00024744,2]
[424997102,1781395840000,-470.22192,0.00024744,2]
[424997103,1781395840000,-470.22192,0.00024744,2]
[424997106,1781395840000,-470.22192,0.00024744,2]
[424997105,1781395840000,-470.22192,0.00024744,2]
[424997107,1781395840000,-470.22192,0.00024744,2]
[424997104,1781395840000,-470.22192,0.00024744,2]
[424997109,1781395840000,-151.0,0.00024744,2]
[424997110,1781395840000,-2309.932865,0.00024744,2]
[424997108,1781395840000,-151.0,0.00024744,2]
[424997112,1781395840000,-151.0,0.00024744,2]
[424997111,1781395840000,-2309.932865,0.00024744,2]
[424997115,1781395840000,-2309.932865,0.00024744,2]
[424997113,1781395840000,-2309.932865,0.00024744,2]
[424997117,1781395840000,-2309.932865,0.00024744,2]
[424997143,1781395840000,-151.0,0.00024744,2]
[424997161,1781395840000,-1755.228887,0.00024744,2]
[424997150,1781395840000,-234.034188,0.00024744,2]
[424997186,1781395840000,-1620.978708,0.00024744,2]
[424997187,1781395840000,-1620.978708,0.00024744,2]
[424997189,1781395840000,-1620.978708,0.00024744,2]
[424997192,1781395840000,-766.647409,0.00024744,2]
[424997183,1781395840000,-1620.978708,0.00024744,2]
[424997184,1781395840000,-1620.978708,0.00024744,2]
[424997185,1781395840000,-1620.978708,0.00024744,2]
[424997188,1781395840000,-1620.978708,0.00024744,2]
[424997191,1781395840000,-766.647409,0.00024744,2]
[424997193,1781395840000,-766.647409,0.00024744,2]
[424997195,1781395840000,-766.647409,0.00024744,2]
[424997194,1781395840000,-311.074054,0.00024744,2]
[424997196,1781395840000,-311.074054,0.00024744,2]
[424997182,1781395840000,-1620.978708,0.00024744,2]
[424997197,1781395840000,-311.074054,0.00024744,2]
[424997199,1781395840000,-151.0,0.00024744,2]
[424997149,1781395840000,-234.034188,0.00024744,2]
[424997200,1781395840000,-311.074054,0.00024744,2]
[424997201,1781395840000,-151.0,0.00024744,2]
[424997202,1781395840000,-766.647409,0.00024744,2]
[424997203,1781395840000,-151.0,0.00024744,2]
[424997204,1781395840000,-766.647409,0.00024744,2]
[424997205,1781395840000,-311.074054,0.00024744,2]
[424997207,1781395840000,-311.074054,0.00024744,2]
[424997208,1781395840000,-311.074054,0.00024744,2]
[424997209,1781395840000,-311.074054,0.00024744,2]
[424997211,1781395840000,-766.647409,0.00024744,2]
[424997210,1781395840000,-766.647409,0.00024744,2]
[424997206,1781395840000,-766.647409,0.00024744,2]
[424997180,1781395840000,-1620.978708,0.00024744,2]
[424997198,1781395840000,-766.647409,0.00024744,2]
[424997175,1781395840000,-151.0,0.00024744,2]
[424997181,1781395840000,-1620.978708,0.00024744,2]
[424997151,1781395840000,-151.0,0.00024744,2]
[424997153,1781395840000,-234.034188,0.00024744,2]
[424997154,1781395840000,-234.034188,0.00024744,2]
[424997155,1781395840000,-234.034188,0.00024744,2]
[424997156,1781395840000,-234.034188,0.00024744,2]
[424997159,1781395840000,-1755.228887,0.00024744,2]
[424997160,1781395840000,-1755.228887,0.00024744,2]
[424997158,1781395840000,-234.034188,0.00024744,2]
[424997162,1781395840000,-1755.228887,0.00024744,2]
[424997166,1781395840000,-1755.228887,0.00024744,2]
[424997163,1781395840000,-1755.228887,0.00024744,2]
[424997157,1781395840000,-234.034188,0.00024744,2]
[424997152,1781395840000,-151.0,0.00024744,2]
[424997164,1781395840000,-1755.228887,0.00024744,2]
[424997176,1781395840000,-151.0,0.00024744,2]
[424997177,1781395840000,-153.090512,0.00024744,2]
[424997165,1781395840000,-1755.228887,0.00024744,2]
[424997171,1781395840000,-1755.228887,0.00024744,2]
[424997172,1781395840000,-151.0,0.00024744,2]
[424997173,1781395840000,-253.008716,0.00024744,2]
[424997174,1781395840000,-151.0,0.00024744,2]
[424997169,1781395840000,-1755.228887,0.00024744,2]
[424997178,1781395840000,-1620.978708,0.00024744,2]
[424997170,1781395840000,-151.0,0.00024744,2]
[424997167,1781395840000,-1755.228887,0.00024744,2]
[424997168,1781395840000,-1755.228887,0.00024744,2]
[424997179,1781395840000,-1620.978708,0.00024744,2]
[424997219,1781395841000,-766.647409,0.00024744,2]
[424997212,1781395841000,-311.074054,0.00024744,2]
[424997214,1781395841000,-311.074054,0.00024744,2]
[424997215,1781395841000,-766.647409,0.00024744,2]
[424997213,1781395841000,-766.647409,0.00024744,2]
[424997217,1781395841000,-311.074054,0.00024744,2]
[424997216,1781395841000,-311.074054,0.00024744,2]
[424997218,1781395841000,-766.647409,0.00024744,2]
[424997221,1781395841000,-766.647409,0.00024744,2]
[424997226,1781395841000,-323.072058,0.00024744,2]
[424997223,1781395841000,-766.647409,0.00024744,2]
[424997225,1781395841000,-311.074054,0.00024744,2]
[424997224,1781395841000,-311.074054,0.00024744,2]
[424997222,1781395841000,-311.074054,0.00024744,2]
[424997228,1781395841000,-323.072058,0.00024744,2]
[424997227,1781395841000,-323.072058,0.00024744,2]
[424997229,1781395841000,-30352.04703398,0.00024744,2]
[424997230,1781395841000,-72539.60330805,0.00024744,2]
[424997231,1781395841000,-5071.17314401,0.00024744,2]
[424997220,1781395841000,-311.074054,0.00024744,2]
[424997245,1781395847000,-222.49961433,0.00024744,2]
[424997244,1781395847000,-2433.52793203,0.00024642,2]
[424997328,1781397046000,-186.05115025,0.00021452,4]
[424997329,1781397046000,-1185.35941258,0.00024343,2]
[424997331,1781397187000,-652.7317321,0.00023557,2]
[424997332,1781397204000,-280.92761352,0.00023239,14]
[424997333,1781397220000,-4719.07238648,0.00024343,2]
[424997334,1781397237000,-173.91,0.00023239,3]
[424997348,1781398231000,-186.05115025,0.00021452,4]
[424997349,1781398231000,-685.1595902,0.00023457,2]
[424997352,1781398231000,-210.81832337,0.00024143,2]
[424997350,1781398231000,-160.5669078,0.00023504,2]
[424997351,1781398231000,-627.56,0.00024,3]
[424997353,1781398231000,-653.0,0.00024163,2]
[424997354,1781398231000,-525.57433828,0.00024242,2]
[424997360,1781398231000,-520.66956508,0.00024242,2]
[424997358,1781398231000,-500.0,0.00024242,2]
[424997355,1781398231000,-500.0,0.00024242,2]
[424997359,1781398231000,-525.57433828,0.00024242,2]
[424997357,1781398231000,-322.0010541,0.00024242,2]
[424997368,1781398231000,-214.06733835,0.00024242,2]
[424997363,1781398231000,-500.0,0.00024242,2]
[424997364,1781398231000,-525.57433828,0.00024242,2]
[424997366,1781398231000,-525.57433828,0.00024242,2]
[424997356,1781398231000,-500.0,0.00024242,2]
[424997367,1781398231000,-500.0,0.00024242,2]
[424997361,1781398231000,-500.0,0.00024242,2]
[424997362,1781398231000,-500.0,0.00024242,2]
[424997365,1781398231000,-500.0,0.00024242,2]
[424997370,1781398232000,-46.42211982,0.00024242,2]
[424997369,1781398232000,-525.57433828,0.00024242,2]
[424997410,1781398240000,-536.08582504,0.00024242,2]
[424997414,1781398240000,-536.08582504,0.00024242,2]
[424997419,1781398240000,-251.52916486,0.00024242,2]
[424997429,1781398240000,-284.55666018,0.00024242,2]
[424997435,1781398240000,-536.08582504,0.00024242,2]
[424997437,1781398240000,-349.0992001,0.00024242,2]
[424997441,1781398240000,-452.35524605,0.00024242,2]
[424997439,1781398240000,-186.98662494,0.00024242,2]
[424997412,1781398240000,-536.08582504,0.00024242,2]
[424997431,1781398240000,-536.08582504,0.00024242,2]
[424997417,1781398240000,-536.08582504,0.00024242,2]
[424997394,1781398240000,-296.4567972,0.00024242,2]
[424997408,1781398240000,-536.08582504,0.00024242,2]
[424997399,1781398240000,-525.57433828,0.00024242,2]
[424997398,1781398240000,-525.57433828,0.00024242,2]
[424997396,1781398240000,-229.11754108,0.00024242,2]
[424997443,1781398240000,-177.54559836,0.00024242,2]
[424997406,1781398240000,-536.08582504,0.00024242,2]
[424997401,1781398240000,-525.57433828,0.00024242,2]
[424997403,1781398240000,-525.57433828,0.00024242,2]
[424997404,1781398240000,-525.57433828,0.00024242,2]
[424997392,1781398240000,-453.57788018,0.00024242,2]
[424997415,1781398240000,-536.08582504,0.00024242,2]
[424997448,1781398240000,-152.24720445,0.00024242,2]
[424997433,1781398240000,-536.08582504,0.00024242,2]
[424997455,1781398240000,-394.641168,0.00024243,2]
[424997472,1781398240000,-184.53,0.00024243,2]
[424997446,1781398240000,-477.65363996,0.00024242,2]
[424997475,1781398240000,-241.3940329,0.00024243,2]
[424997473,1781398240000,-824.074676,0.00024243,2]
[424997471,1781398240000,-188.710945,0.00024243,2]
[424997465,1781398240000,-55.76076563,0.00024243,2]
[424997470,1781398240000,-39.30198515,0.00024243,2]
[424997462,1781398240000,-117.39282063,0.00024243,2]
[424997468,1781398240000,-188.710945,0.00024243,2]
[424997467,1781398240000,-188.710945,0.00024243,2]
[424997464,1781398240000,-95.23923437,0.00024243,2]
[424997466,1781398240000,-151.0,0.00024243,2]
[424997474,1781398240000,-184.53,0.00024243,2]
[424997463,1781398240000,-151.0,0.00024243,2]
[424997469,1781398240000,-149.40895985,0.00024243,2]
[424997452,1781398240000,-151.952902,0.00024243,2]
[424997450,1781398240000,-300.0,0.00024243,2]
[424997444,1781398240000,-629.90084441,0.00024242,2]
[424997456,1781398240000,-394.641168,0.00024243,2]
[424997454,1781398240000,-394.641168,0.00024243,2]
[424997460,1781398240000,-185.046885,0.00024243,2]
[424997458,1781398240000,-173.91,0.00024243,6]
[424997457,1781398240000,-394.641168,0.00024243,2]
[424997461,1781398240000,-33.60717937,0.00024243,2]
[424997459,1781398240000,-151.0,0.00024243,2]
[424997515,1781398246000,-409.977531,0.00024243,2]
[424997507,1781398246000,-151.0,0.00024243,2]
[424997514,1781398246000,-151.0,0.00024243,2]
[424997516,1781398246000,-151.0,0.00024243,2]
[424997513,1781398246000,-151.0,0.00024243,2]
[424997509,1781398246000,-151.0,0.00024243,2]
[424997511,1781398246000,-151.0,0.00024243,2]
[424997512,1781398246000,-151.0,0.00024243,2]
[424997510,1781398246000,-151.0,0.00024243,2]
[424997518,1781398246000,-151.0,0.00024243,2]
[424997502,1781398246000,-824.074676,0.00024243,2]
[424997508,1781398246000,-151.0,0.00024243,2]
[424997504,1781398246000,-151.0,0.00024243,2]
[424997506,1781398246000,-151.0,0.00024243,2]
[424997505,1781398246000,-151.0,0.00024243,2]
[424997503,1781398246000,-151.0,0.00024243,2]
[424997501,1781398246000,-184.53,0.00024243,2]
[424997500,1781398246000,-334.2553221,0.00024243,2]
[424997494,1781398246000,-489.8193539,0.00024243,2]
[424997490,1781398246000,-582.6806431,0.00024243,2]
[424997517,1781398246000,-409.977531,0.00024243,2]
[424997519,1781398246000,-409.977531,0.00024243,2]
[424997525,1781398246000,-409.977531,0.00024243,2]
[424997492,1781398246000,-184.53,0.00024243,2]
[424997520,1781398246000,-283.874771,0.00024243,2]
[424997524,1781398246000,-409.977531,0.00024243,2]
[424997541,1781398246000,-151.0,0.00024243,2]
[424997543,1781398246000,-151.0,0.00024243,2]
[424997544,1781398246000,-189.202844,0.00024243,2]
[424997542,1781398246000,-189.202844,0.00024243,2]
[424997540,1781398246000,-189.202844,0.00024243,2]
[424997539,1781398246000,-189.202844,0.00024243,2]
[424997537,1781398246000,-189.202844,0.00024243,2]
[424997538,1781398246000,-189.202844,0.00024243,2]
[424997535,1781398246000,-189.202844,0.00024243,2]
[424997534,1781398246000,-4869.889141,0.00024243,2]
[424997536,1781398246000,-189.202844,0.00024243,2]
[424997531,1781398246000,-846.4837317,0.00024243,2]
[424997532,1781398246000,-4869.889141,0.00024243,2]
[424997530,1781398246000,-4023.4054093,0.00024243,2]
[424997529,1781398246000,-4869.889141,0.00024243,2]
[424997527,1781398246000,-4869.889141,0.00024243,2]
[424997523,1781398246000,-409.977531,0.00024243,2]
[424997528,1781398246000,-4869.889141,0.00024243,2]
[424997522,1781398246000,-409.977531,0.00024243,2]
[424997526,1781398246000,-4869.889141,0.00024243,2]
[424997521,1781398246000,-409.977531,0.00024243,2]
[424997533,1781398246000,-4869.889141,0.00024243,2]
[424997549,1781398247000,-189.202844,0.00024243,2]
[424997545,1781398247000,-189.202844,0.00024243,2]
[424997547,1781398247000,-189.202844,0.00024243,2]
[424997548,1781398247000,-260.902279,0.00024243,2]
[424997546,1781398247000,-151.0,0.00024243,2]
[424997552,1781398247000,-151.0,0.00024243,2]
[424997557,1781398247000,-724.64138782,0.00024243,2]
[424997550,1781398247000,-189.202844,0.00024243,2]
[424997554,1781398247000,-5531.07301926,0.00024243,2]
[424997553,1781398247000,-151.0,0.00024243,2]
[424997555,1781398247000,-154.14558674,0.00024243,2]
[424997556,1781398247000,-151.0,0.00024243,2]
[424997551,1781398247000,-151.0,0.00024243,2]
[424997600,1781399432000,-369.05212389,0.00020351,7]
[424997610,1781399432000,-2059.44085017,0.00022688,2]
[424997614,1781399432000,-9485.2807853,0.00022906,2]
[424997618,1781399432000,-207.77,0.00023139,7]
[424997612,1781399432000,-7180.6444906,0.00022688,2]
[424997604,1781399432000,-5734.44296283,0.00022688,2]
[424997616,1781399432000,-156.465,0.00023039,2]
[424997623,1781399432000,-341.20962616,0.00023903,2]
[424997622,1781399432000,-500.0,0.00023317,2]
[424997625,1781399432000,-34.00506298,0.00023903,2]
[424997627,1781399432000,-2313.96739778,0.00023942,2]
[424997629,1781399432000,-18298.14996305,0.00023942,2]
[424997636,1781399432000,-3760.37042064,0.00023942,2]
[424997602,1781399432000,-374.02369753,0.00020881,2]
[424997620,1781399432000,-500.0,0.00023317,2]
[424997698,1781399438000,-2747.83798997,0.00023942,2]
[424998077,1781399446000,-15946.29814246,0.00023942,2]
[424998078,1781399446000,-3226.35,0.00023942,2]
[424998248,1781400608000,151.0,0.0002,120]
[424998294,1781400632000,-5000.0,0.00012624,2]
[424998291,1781400632000,-5000.0,0.00012498,2]
[424998296,1781400632000,-1818.0479625,0.00012752,2]
[424998346,1781400638000,-166.56308859,0.00014275,2]
[424998338,1781400638000,-5000.0,0.00012624,2]
[424998341,1781400638000,-955.9899452,0.000141,2]